fUSD/lending_fUSD_20250708
["ID","MTS","AMOUNT","RATE_DAILY","PERIOD"]
[370277830,1751934652762,-490.0,0.00030956,7]
[370277832,1751934652771,-490.0,0.00030956,7]
[370277834,1751934652781,-490.0,0.00030956,7]
[370277836,1751934652791,-490.0,0.00030956,7]
[370277839,1751934652803,-460.0,0.00030956,7]
[370277841,1751934652813,-490.0,0.00030956,7]
[370277843,1751934652824,-460.0,0.00030956,7]
[370277845,1751934652834,-494.71257623,0.00030956,7]
[370277847,1751934652843,-490.0,0.00030956,7]
[370277849,1751934652852,-460.0,0.00030956,7]
[370277851,1751934652862,-460.0,0.00030956,7]
[370277853,1751934652871,-499.72,0.00030956,7]
[370277855,1751934652881,-460.0,0.00030956,7]
[370277857,1751934652890,-460.0,0.00030956,7]
[370277859,1751934652900,-490.0,0.00030956,7]
[370277861,1751934652909,-490.72832612,0.00030956,7]
[370277863,1751934652919,-460.0,0.00030956,7]
[370277865,1751934652928,-490.0,0.00030956,7]
[370277867,1751934652937,-490.0,0.00030956,7]
[370277869,1751934652947,-490.0,0.00030956,7]
[370277871,1751934652957,-460.0,0.00030956,7]
[370277873,1751934652967,-460.0,0.00030956,7]
[370277875,1751934652976,-490.0,0.00030956,7]
[370277877,1751934652985,-460.0,0.00030956,7]
[370277879,1751934652995,-460.0,0.00030956,7]
[370277881,1751934653005,-423.03421778,0.00030956,7]
[370277883,1751934653015,-490.0,0.00030956,7]
[370277885,1751934653026,-1638.91,0.00030956,7]
[370277887,1751934653035,-460.0,0.00030956,7]
[370277888,1751934653044,-460.0,0.00030956,7]
[370277891,1751934653054,-495.09666099,0.00030956,7]
[370277892,1751934653064,-460.0,0.00030956,7]
[370277894,1751934653074,-490.0,0.00030956,7]
[370277896,1751934653083,-490.0,0.00030956,7]
[370277898,1751934653093,-490.0,0.00030956,7]
[370277900,1751934653104,-490.0,0.00030956,7]
[370277902,1751934653113,-490.0,0.00030956,7]
[370277904,1751934653123,-490.0,0.00030956,7]
[370277906,1751934653132,-490.0,0.00030956,7]
[370277908,1751934653142,-402.35,0.00030956,7]
[370277910,1751934653152,-460.0,0.00030956,7]
[370277912,1751934653161,-522.53,0.00030956,7]
[370277914,1751934653171,-490.0,0.00030956,7]
[370277916,1751934653180,-460.0,0.00030956,7]
[370277918,1751934653189,-460.0,0.00030956,7]
[370277920,1751934653199,-490.0,0.00030956,7]
[370277922,1751934653208,-490.0,0.00030956,7]
[370277924,1751934653217,-490.0,0.00030956,7]
[370277926,1751934653227,-460.0,0.00030956,7]
[370277928,1751934653236,-460.0,0.00030956,7]
[370277930,1751934653245,-460.0,0.00030956,7]
[370277932,1751934653255,-607.24,0.00030956,7]
[370277934,1751934653265,-460.0,0.00030956,7]
[370277936,1751934653274,-490.0,0.00030956,7]
[370277938,1751934653284,-460.0,0.00030956,7]
[370277940,1751934653293,-460.0,0.00030956,7]
[370277942,1751934653303,-460.0,0.00030956,7]
[370277944,1751934653312,-490.0,0.00030956,7]
[370277946,1751934653321,-460.0,0.00030956,7]
[370277948,1751934653330,-490.0,0.00030956,7]
[370277950,1751934653340,-460.0,0.00030956,7]
[370277952,1751934653349,-460.0,0.00030956,7]
[370277954,1751934653358,-460.0,0.00030956,7]
[370277956,1751934653370,-541.22,0.00030956,7]
[370277958,1751934653380,-490.0,0.00030956,7]
[370277960,1751934653389,-490.0,0.00030956,7]
[370277962,1751934653399,-460.0,0.00030956,7]
[370277964,1751934653408,-490.0,0.00030956,7]
[370277966,1751934653417,-490.0,0.00030956,7]
[370277968,1751934653426,-460.0,0.00030956,7]
[370277971,1751934653436,-460.0,0.00030956,7]
[370277973,1751934653446,-460.0,0.00030956,7]
[370277975,1751934653455,-490.0,0.00030956,7]
[370277977,1751934653464,-490.0,0.00030956,7]
[370277979,1751934653473,-460.0,0.00030956,7]
[370277981,1751934653483,-490.0,0.00030956,7]
[370277983,1751934653492,-460.0,0.00030956,7]
[370277985,1751934653501,-894.16,0.00030956,7]
[370277987,1751934653511,-509.55,0.00030956,7]
[370277989,1751934653520,-460.0,0.00030956,7]
[370277991,1751934653529,-460.0,0.00030956,7]
[370277993,1751934653541,-460.0,0.00030956,7]
[370277995,1751934653550,-490.0,0.00030956,7]
[370277997,1751934653559,-460.0,0.00030956,7]
[370277999,1751934653568,-460.0,0.00030956,7]
[370278001,1751934653578,-460.0,0.00030956,7]
[370278003,1751934653587,-490.0,0.00030956,7]
[370278005,1751934653596,-765.39,0.00030956,7]
[370278007,1751934653605,-460.0,0.00030956,7]
[370278009,1751934653614,-490.0,0.00030956,7]
[370278011,1751934653623,-490.0,0.00030956,7]
[370278013,1751934653632,-460.0,0.00030956,7]
[370278015,1751934653641,-460.0,0.00030956,7]
[370278017,1751934653651,-490.0,0.00030956,7]
[370278019,1751934653661,-490.0,0.00030956,7]
[370278021,1751934653670,-497.89,0.00030956,7]
[370278023,1751934653680,-706.26,0.00030956,7]
[370278025,1751934653689,-490.0,0.00030956,7]
[370278026,1751934653698,-460.0,0.00030956,7]
[370278028,1751934653707,-460.0,0.00030956,7]
[370278030,1751934653717,-540.84670129,0.00030956,7]
[370278032,1751934653726,-523.54,0.00030956,7]
[370278034,1751934653735,-460.0,0.00030956,7]
[370278036,1751934653745,-490.0,0.00030956,7]
[370278038,1751934653754,-460.0,0.00030956,7]
[370278040,1751934653765,-460.0,0.00030956,7]
[370278042,1751934653774,-460.0,0.00030956,7]
[370278044,1751934653785,-698.6,0.00030956,7]
[370278046,1751934653796,-460.0,0.00030956,7]
[370278048,1751934653805,-460.0,0.00030956,7]
[370278050,1751934653815,-460.0,0.00030956,7]
[370278052,1751934653824,-460.0,0.00030956,7]
[370278054,1751934653833,-460.0,0.00030956,7]
[370278056,1751934653843,-460.0,0.00030956,7]
[370278058,1751934653856,-490.0,0.00030956,7]
[370278061,1751934653866,-460.0,0.00030956,7]
[370278062,1751934653875,-460.0,0.00030956,7]
[370278063,1751934653884,-460.0,0.00030956,7]
[370278064,1751934653894,-505.26,0.00030956,7]
[370278065,1751934653904,-713.17,0.00030956,7]
[370278066,1751934653913,-460.0,0.00030956,7]
[370278067,1751934653923,-490.0,0.00030956,7]
[370278068,1751934653933,-460.0,0.00030956,7]
[370278069,1751934653942,-574.3,0.00030956,7]
[370278070,1751934653951,-460.0,0.00030956,7]
[370278071,1751934653961,-490.0,0.00030956,7]
[370278072,1751934653971,-460.0,0.00030956,7]
[370278073,1751934653980,-778.28,0.00030956,7]
[370278074,1751934653990,-460.0,0.00030956,7]
[370278075,1751934653999,-490.0,0.00030956,7]
[370278076,1751934654010,-460.0,0.00030956,7]
[370278077,1751934654020,-460.0,0.00030956,7]
[370278078,1751934654029,-2469.19,0.00030956,7]
[370278079,1751934654039,-460.0,0.00030956,7]
[370278080,1751934654049,-460.0,0.00030956,7]
[370278081,1751934654058,-490.0,0.00030956,7]
[370278082,1751934654067,-460.0,0.00030956,7]
[370278083,1751934654078,-460.0,0.00030956,7]
[370278084,1751934654087,-460.0,0.00030956,7]
[370278085,1751934654097,-460.0,0.00030956,7]
[370278086,1751934654107,-490.0,0.00030956,7]
[370278087,1751934654117,-490.0,0.00030956,7]
[370278088,1751934654126,-460.0,0.00030956,7]
[370278089,1751934654135,-490.0,0.00030956,7]
[370278090,1751934654145,-460.0,0.00030956,7]
[370278091,1751934654155,-490.0,0.00030956,7]
[370278092,1751934654164,-490.0,0.00030956,7]
[370278093,1751934654173,-460.0,0.00030956,7]
[370278094,1751934654183,-490.0,0.00030956,7]
[370278095,1751934654192,-460.0,0.00030956,7]
[370278096,1751934654202,-460.0,0.00030956,7]
[370278097,1751934654212,-460.0,0.00030956,7]
[370278098,1751934654221,-490.0,0.00030956,7]
[370278099,1751934654231,-490.78982664,0.00030956,7]
[370278100,1751934654240,-460.0,0.00030956,7]
[370278101,1751934654250,-599.18,0.00030956,7]
[370278102,1751934654260,-539.37,0.00030956,7]
[370278103,1751934654269,-490.0,0.00030956,7]
[370278104,1751934654279,-458.75,0.00030956,7]
[370278105,1751934654288,-490.0,0.00030956,7]
[370278106,1751934654341,-460.0,0.00030956,7]
[370278107,1751934654351,-460.0,0.00030956,7]
[370278108,1751934654361,-460.0,0.00030956,7]
[370278109,1751934654373,-490.0,0.00030956,7]
[370278110,1751934654384,-292.67528324,0.00030956,7]
[370278111,1751934654393,-590.99,0.00030956,7]
[370278112,1751934654403,-490.0,0.00030956,7]
[370278113,1751934654413,-490.0,0.00030956,7]
[370278114,1751934654422,-460.0,0.00030956,7]
[370278115,1751934654432,-525.14,0.00030956,7]
[370278116,1751934654444,-460.0,0.00030956,7]
[370278117,1751934654454,-460.0,0.00030956,7]
[370278118,1751934654463,-460.0,0.00030956,7]
[370278119,1751934654472,-460.0,0.00030956,7]
[370278120,1751934654481,-490.0,0.00030956,7]
[370278121,1751934654490,-460.0,0.00030956,7]
[370278122,1751934654501,-490.0,0.00030956,7]
[370278123,1751934654512,-490.0,0.00030956,7]
[370278124,1751934654522,-624.66,0.00030956,7]
[370278125,1751934654531,-460.0,0.00030956,7]
[370278126,1751934654540,-490.0,0.00030956,7]
[370278127,1751934654550,-460.0,0.00030956,7]
[370278128,1751934654561,-491.79,0.00030956,7]
[370278129,1751934654571,-490.73000973,0.00030956,7]
[370278130,1751934654581,-490.0,0.00030956,7]
[370278131,1751934654592,-460.0,0.00030956,7]
[370278132,1751934654603,-490.0,0.00030956,7]
[370278133,1751934654612,-460.0,0.00030956,7]
[370278134,1751934654621,-460.0,0.00030956,7]
[370278135,1751934654630,-460.0,0.00030956,7]
[370278136,1751934654640,-490.0,0.00030956,7]
[370278137,1751934654651,-460.0,0.00030956,7]
[370278138,1751934654660,-490.0,0.00030956,7]
[370278139,1751934654669,-460.0,0.00030956,7]
[370278140,1751934654678,-460.0,0.00030956,7]
[370278141,1751934654687,-490.0,0.00030956,7]
[370278142,1751934654697,-746.89,0.00030956,7]
[370278143,1751934654706,-490.0,0.00030956,7]
[370278144,1751934654715,-573.43,0.00030956,7]
[370278145,1751934654724,-490.0,0.00030956,7]
[370278146,1751934654733,-490.0,0.00030956,7]
[370278147,1751934654742,-490.0,0.00030956,7]
[370278148,1751934654751,-460.0,0.00030956,7]
[370278149,1751934654760,-490.0,0.00030956,7]
[370278150,1751934654769,-655.23,0.00030956,7]
[370278151,1751934654778,-460.0,0.00030956,7]
[370278152,1751934654787,-460.0,0.00030956,7]
[370278153,1751934654796,-460.0,0.00030956,7]
[370278154,1751934654806,-490.0,0.00030956,7]
[370278155,1751934654815,-573.96,0.00030956,7]
[370278156,1751934654825,-460.0,0.00030956,7]
[370278157,1751934654835,-490.0,0.00030956,7]
[370278158,1751934654845,-460.0,0.00030956,7]
[370278159,1751934654855,-460.0,0.00030956,7]
[370278160,1751934654865,-490.0,0.00030956,7]
[370278161,1751934654875,-460.0,0.00030956,7]
[370278162,1751934654885,-490.0,0.00030956,7]
[370278163,1751934654894,-1760.16,0.00030956,7]
[370278164,1751934654904,-490.0,0.00030956,7]
[370278165,1751934654913,-543.8,0.00030956,7]
[370278166,1751934654923,-1438.98,0.00030956,7]
[370278167,1751934654934,-310.95,0.00030956,7]
[370278168,1751934654947,-489.25,0.00030956,7]
[370278169,1751934654958,-460.0,0.00030956,7]
[370278170,1751934654967,-490.0,0.00030956,7]
[370278171,1751934654978,-460.0,0.00030956,7]
[370278172,1751934654988,-490.0,0.00030956,7]
[370278173,1751934654997,-490.0,0.00030956,7]
[370278174,1751934655007,-490.0,0.00030956,7]
[370278175,1751934655016,-460.0,0.00030956,7]
[370278176,1751934655026,-460.0,0.00030956,7]
[370278177,1751934655038,-460.0,0.00030956,7]
[370278178,1751934655047,-460.0,0.00030956,7]
[370278179,1751934655056,-490.0,0.00030956,7]
[370278180,1751934655065,-490.0,0.00030956,7]
[370278181,1751934655074,-1131.95,0.00030956,7]
[370278182,1751934655083,-460.0,0.00030956,7]
[370278183,1751934655093,-497.75446796,0.00030956,7]
[370278184,1751934655102,-490.0,0.00030956,7]
[370278185,1751934655111,-396.98785536,0.00030956,7]
[370278186,1751934655120,-460.0,0.00030956,7]
[370278187,1751934655129,-490.0,0.00030956,7]
[370278188,1751934655138,-490.0,0.00030956,7]
[370278189,1751934655147,-490.0,0.00030956,7]
[370278190,1751934655157,-490.0,0.00030956,7]
[370278191,1751934655166,-300.0,0.00030956,7]
[370278192,1751934655175,-490.0,0.00030956,7]
[370278193,1751934655184,-460.0,0.00030956,7]
[370278194,1751934655194,-1078.36,0.00030956,7]
[370278195,1751934655203,-460.0,0.00030956,7]
[370278196,1751934655213,-460.0,0.00030956,7]
[370278197,1751934655222,-460.0,0.00030956,7]
[370278198,1751934655232,-460.0,0.00030956,7]
[370278199,1751934655241,-460.0,0.00030956,7]
[370278200,1751934655250,-490.0,0.00030956,7]
[370278201,1751934655259,-1395.84,0.00030956,7]
[370278202,1751934655268,-460.0,0.00030956,7]
[370278203,1751934655278,-460.0,0.00030956,7]
[370278204,1751934655288,-460.0,0.00030956,7]
[370278205,1751934655297,-490.0,0.00030956,7]
[370278206,1751934655306,-460.0,0.00030956,7]
[370278207,1751934655315,-460.0,0.00030956,7]
[370278208,1751934655324,-460.0,0.00030956,7]
[370278209,1751934655334,-2407.49,0.00030956,7]
[370278210,1751934655343,-490.0,0.00030956,7]
[370278211,1751934655352,-490.59201917,0.00030956,7]
[370278212,1751934655361,-490.0,0.00030956,7]
[370278213,1751934655373,-862.9,0.00030956,7]
[370278214,1751934655382,-460.0,0.00030956,7]
[370278215,1751934655392,-460.0,0.00030956,7]
[370278216,1751934655401,-490.0,0.00030956,7]
[370278217,1751934655410,-491.58213681,0.00030956,7]
[370278218,1751934655420,-460.0,0.00030956,7]
[370278219,1751934655429,-490.0,0.00030956,7]
[370278220,1751934655438,-490.0,0.00030956,7]
[370278221,1751934655447,-460.0,0.00030956,7]
[370278222,1751934655456,-490.0,0.00030956,7]
[370278223,1751934655465,-1000.0,0.00030956,7]
[370278224,1751934655474,-490.0,0.00030956,7]
[370278225,1751934655483,-490.0,0.00030956,7]
[370278226,1751934655493,-565.05,0.00030956,7]
[370278227,1751934655502,-460.0,0.00030956,7]
[370278228,1751934655511,-460.0,0.00030956,7]
[370278229,1751934655520,-490.0,0.00030956,7]
[370278230,1751934655529,-490.0,0.00030956,7]
[370278231,1751934655538,-460.0,0.00030956,7]
[370278232,1751934655547,-490.0,0.00030956,7]
[370278233,1751934655557,-648.67,0.00030956,7]
[370278234,1751934655566,-570.55,0.00030956,7]
[370278235,1751934655575,-491.66839286,0.00030956,7]
[370278236,1751934655585,-460.0,0.00030956,7]
[370278237,1751934655594,-460.0,0.00030956,7]
[370278238,1751934655603,-490.0,0.00030956,7]
[370278239,1751934655612,-1275.91,0.00030956,7]
[370278240,1751934655621,-490.0,0.00030956,7]
[370278241,1751934655631,-490.0,0.00030956,7]
[370278242,1751934655641,-460.0,0.00030956,7]
[370278243,1751934655651,-460.0,0.00030956,7]
[370278244,1751934655660,-500.0,0.00030956,7]
[370278245,1751934655670,-490.0,0.00030956,7]
[370278246,1751934655681,-493.03493647,0.00030956,7]
[370278247,1751934655690,-16394.96,0.00030956,7]
[370278248,1751934655700,-765.21,0.00030956,7]
[370278249,1751934655709,-493.97,0.00030956,7]
[370278250,1751934655719,-460.0,0.00030956,7]
[370278251,1751934655728,-490.0,0.00030956,7]
[370278252,1751934655738,-460.0,0.00030956,7]
[370278253,1751934655747,-490.0,0.00030956,7]
[370278254,1751934655756,-460.0,0.00030956,7]
[370278255,1751934655766,-460.0,0.00030956,7]
[370278256,1751934655776,-460.0,0.00030957,7]
[370278257,1751934655787,-530.84,0.00030958,7]
[370278258,1751934655796,-466.75,0.00030958,7]
[370278259,1751934655807,-200.0,0.0003099,2]
[370278260,1751934655817,-353.75,0.00030991,2]
[370278261,1751934655827,-1000.0,0.00031021,5]
[370278262,1751934655836,-509.0,0.00031081,2]
[370278263,1751934655846,-353.75,0.00031136,2]
[370278264,1751934655855,-489.999999,0.0003121,2]
[370278265,1751934655864,-460.0,0.0003122,7]
[370278266,1751934655874,-460.0,0.0003122,7]
[370278267,1751934655883,-632.05,0.0003122,7]
[370278268,1751934655893,-460.0,0.0003122,7]
[370278269,1751934655903,-2806.54,0.0003122,7]
[370278270,1751934655913,-2806.54,0.0003122,7]
[370278271,1751934655922,-2806.54,0.0003122,7]
[370278272,1751934655932,-2806.54,0.0003122,7]
[370278273,1751934655941,-2806.54,0.0003122,7]
[370278274,1751934655950,-460.0,0.0003122,7]
[370278275,1751934655959,-460.0,0.0003122,7]
[370278276,1751934655969,-460.0,0.0003122,7]
[370278277,1751934655978,-959.18,0.0003122,7]
[370278278,1751934655987,-959.18,0.0003122,7]
[370278279,1751934655996,-959.18,0.0003122,7]
[370278280,1751934656007,-959.18,0.0003122,7]
[370278281,1751934656016,-959.18,0.0003122,7]
[370278282,1751934656025,-2199.3,0.0003122,7]
[370278283,1751934656035,-509.63,0.0003122,7]
[370278284,1751934656044,-1998.85,0.0003122,7]
[370278285,1751934656054,-524.71,0.00031221,7]
[370278286,1751934656063,-460.0,0.00031221,7]
[370278287,1751934656073,-460.0,0.00031221,7]
[370278288,1751934656082,-460.0,0.00031221,7]
[370278289,1751934656092,-460.0,0.00031221,7]
[370278290,1751934656101,-460.0,0.00031221,7]
[370278291,1751934656111,-173.55,0.00031221,7]
[370278292,1751934656120,-460.0,0.00031221,7]
[370278293,1751934656129,-460.0,0.00031221,7]
[370278294,1751934656138,-460.0,0.00031221,7]
[370278295,1751934656148,-474.36,0.00031221,7]
[370278296,1751934656157,-460.0,0.00031221,7]
[370278297,1751934656167,-326.84,0.00031221,7]
[370278298,1751934656176,-460.0,0.00031221,7]
[370278299,1751934656186,-460.0,0.00031221,7]
[370278300,1751934656196,-460.0,0.00031221,7]
[370278301,1751934656206,-460.0,0.00031227,7]
[370278302,1751934656215,-460.0,0.00031227,7]
[370278303,1751934656225,-460.0,0.00031227,7]
[370278304,1751934656235,-460.0,0.00031227,7]
[370278305,1751934656244,-490.0,0.00031227,7]
[370278306,1751934656254,-460.0,0.00031227,7]
[370278307,1751934656263,-117.58914325,0.00031227,7]
[370278308,1751934656506,-342.41085675,0.00031227,7]
[370278309,1751934656516,-460.0,0.00031227,7]
[370278310,1751934656526,-281.1,0.00031227,7]
[370278311,1751934656535,-460.0,0.00031227,7]
[370278312,1751934656545,-460.0,0.00031227,7]
[370278313,1751934656554,-460.0,0.00031227,7]
[370278314,1751934656564,-460.0,0.00031227,7]
[370278315,1751934656573,-440.35499721,0.00031227,7]
[370278316,1751934656585,-1018.61500279,0.00031227,7]
[370278317,1751934656594,-460.0,0.00031227,7]
[370278318,1751934656603,-460.0,0.00031227,7]
[370278319,1751934656612,-460.0,0.00031227,7]
[370278320,1751934656622,-166.027969,0.00031227,7]
[370278321,1751934656631,-554.700179,0.00031227,7]
[370278322,1751934656640,-981.098,0.00031227,7]
[370278323,1751934656650,-1084.767978,0.00031227,7]
[370278324,1751934656659,-1378.71,0.00031227,7]
[370278325,1751934656670,-325.8,0.00031228,7]
[370278326,1751934656679,-460.0,0.00031228,7]
[370278327,1751934656690,-2806.54,0.00031228,7]
[370278328,1751934656701,-186.59947948,0.00031228,7]
[370278329,1751934656719,-772.58052052,0.00031228,7]
[370278330,1751934656728,-460.0,0.00031229,7]
[370278331,1751934656739,-201.11947908,0.00031229,7]
[370278332,1751934656755,-258.88052092,0.00031229,7]
[370278333,1751934656767,-460.0,0.00031229,7]
[370278334,1751934656777,-460.0,0.00031229,7]
[370278335,1751934656787,-156.41,0.00031229,7]
[370278336,1751934656797,-511.53,0.00031229,7]
[370278337,1751934656808,-460.0,0.00031229,7]
[370278338,1751934656820,-460.0,0.00031229,7]
[370278339,1751934656830,-460.0,0.00031229,7]
[370278340,1751934656840,-460.0,0.00031229,7]
[370278341,1751934656850,-228.01,0.00031229,7]
[370278342,1751934656860,-460.0,0.00031229,7]
[370278343,1751934656870,-404.03,0.00031229,7]
[370278344,1751934656879,-460.0,0.00031229,7]
[370278345,1751934656890,-460.0,0.00031229,7]
[370278346,1751934656901,-542.01,0.00031229,7]
[370278347,1751934656910,-460.0,0.00031229,7]
[370278348,1751934656920,-470.83,0.00031229,7]
[370278349,1751934656930,-433.53,0.00031229,7]
[370278350,1751934656940,-460.0,0.00031229,7]
[370278351,1751934656951,-460.0,0.00031229,7]
[370278352,1751934656961,-460.0,0.00031229,7]
[370278353,1751934656971,-460.0,0.00031229,7]
[370278354,1751934656983,-855.33,0.00031229,7]
[370278355,1751934656992,-460.0,0.00031229,7]
[370278356,1751934657003,-460.0,0.00031229,7]
[370278357,1751934657014,-670.04,0.00031229,7]
[370278358,1751934657024,-460.0,0.00031229,7]
[370278359,1751934657035,-460.0,0.00031229,7]
[370278360,1751934657045,-1888.63,0.00031229,7]
[370278361,1751934657055,-460.0,0.00031229,7]
[370278362,1751934657065,-460.0,0.00031229,7]
[370278363,1751934657075,-460.0,0.00031229,7]
[370278364,1751934657085,-460.0,0.00031229,7]
[370278365,1751934657095,-460.0,0.00031229,7]
[370278366,1751934657105,-460.0,0.00031229,7]
[370278367,1751934657115,-191.89,0.00031229,7]
[370278368,1751934657125,-460.0,0.00031229,7]
[370278369,1751934657135,-460.0,0.00031229,7]
[370278370,1751934657145,-460.0,0.00031229,7]
[370278371,1751934657156,-535.94,0.00031229,7]
[370278372,1751934657165,-511.62,0.00031229,7]
[370278373,1751934657175,-1208.55,0.00031229,7]
[370278374,1751934657185,-734.55,0.00031229,7]
[370278375,1751934657194,-460.0,0.00031229,7]
[370278376,1751934657204,-557.86,0.00031229,7]
[370278377,1751934657213,-460.0,0.00031229,7]
[370278378,1751934657224,-460.0,0.00031229,7]
[370278379,1751934657235,-460.0,0.00031229,7]
[370278380,1751934657245,-460.0,0.0003123,7]
[370278381,1751934657254,-520.0,0.0003123,7]
[370278382,1751934657264,-460.0,0.0003123,7]
[370278383,1751934657274,-520.0,0.0003123,7]
[370278384,1751934657284,-296.1,0.0003123,7]
[370278385,1751934657293,-409.3,0.0003123,7]
[370278386,1751934657304,-460.0,0.0003123,7]
[370278387,1751934657313,-206.97,0.0003123,7]
[370278388,1751934657323,-460.0,0.0003123,7]
[370278389,1751934657333,-552.36,0.0003123,7]
[370278390,1751934657343,-460.0,0.0003123,7]
[370278391,1751934657353,-325.44,0.0003123,7]
[370278392,1751934657363,-255.7,0.0003123,7]
[370278393,1751934657376,-460.0,0.0003123,7]
[370278394,1751934657386,-460.0,0.0003123,7]
[370278395,1751934657396,-460.0,0.0003123,7]
[370278396,1751934657406,-460.0,0.0003123,7]
[370278397,1751934657417,-496.69,0.0003123,7]
[370278398,1751934657427,-460.0,0.0003123,7]
[370278399,1751934657437,-224.29,0.0003123,7]
[370278400,1751934657449,-460.0,0.0003123,7]
[370278401,1751934657460,-460.0,0.0003123,7]
[370278402,1751934657471,-460.0,0.0003123,7]
[370278403,1751934657482,-408.82,0.0003123,7]
[370278404,1751934657494,-390.69,0.0003123,7]
[370278405,1751934657505,-460.0,0.0003123,7]
[370278406,1751934657515,-499.94,0.0003123,7]
[370278407,1751934657526,-460.0,0.0003123,7]
[370278408,1751934657537,-460.0,0.0003123,7]
[370278409,1751934657547,-460.0,0.0003123,7]
[370278410,1751934657558,-262.31,0.0003123,7]
[370278411,1751934657568,-167.5832731,0.0003123,7]
[370278412,1751934657580,-460.0,0.0003123,7]
[370278413,1751934657591,-460.0,0.0003123,7]
[370278414,1751934657749,-460.0,0.0003123,7]
[370278415,1751934657758,-272.81,0.0003123,7]
[370278416,1751934657767,-460.0,0.0003123,7]
[370278417,1751934657776,-460.0,0.0003123,7]
[370278418,1751934657785,-460.0,0.0003123,7]
[370278419,1751934657794,-460.0,0.0003123,7]
[370278420,1751934657803,-460.0,0.0003123,7]
[370278421,1751934657811,-460.0,0.0003123,7]
[370278422,1751934657821,-460.0,0.0003123,7]
[370278423,1751934657831,-311.8,0.0003123,7]
[370278424,1751934657841,-460.0,0.0003123,7]
[370278425,1751934657851,-460.0,0.0003123,7]
[370278426,1751934657860,-660.76,0.0003123,7]
[370278427,1751934657870,-460.0,0.0003123,7]
[370278428,1751934657880,-460.0,0.0003123,7]
[370278429,1751934657889,-460.0,0.0003123,7]
[370278430,1751934657899,-428.99,0.0003123,7]
[370278431,1751934657908,-460.0,0.0003123,7]
[370278432,1751934657917,-165.96756218,0.0003123,7]
[370278433,1751934657927,-521.47,0.0003123,7]
[370278434,1751934657936,-312.87285858,0.0003123,7]
[370278435,1751934657946,-460.0,0.0003123,7]
[370278436,1751934657955,-460.0,0.0003123,7]
[370278437,1751934657964,-270.08,0.0003123,7]
[370278438,1751934657974,-295.6,0.0003123,7]
[370278439,1751934657984,-325.15,0.0003123,7]
[370278440,1751934657996,-460.0,0.0003123,7]
[370278441,1751934658005,-174.71,0.0003123,7]
[370278442,1751934658014,-573.18,0.0003123,7]
[370278443,1751934658023,-460.0,0.0003123,7]
[370278444,1751934658032,-538.19,0.0003123,7]
[370278445,1751934658042,-460.0,0.0003123,7]